[Event "Navidad Barcelona IM1 2024"]
[Site "Barcelona"]
[Date "2024.12.28"]
[Round "4.3"]
[White "Martin Gonzalez, Angel"]
[Black "Sviridenko, Yaroslav"]
[Result "1/2-1/2"]
[ECO "B14"]
[WhiteElo "2197"]
[BlackElo "2120"]
[Annotator "RC"]
[PlyCount "101"]
[EventDate "2024.12.26"]
[EventCountry "ESP"]
[SourceTitle "playchess.com"]
[Source "ChessBase"]
[SourceQuality "1"]
[TimeControl "5400+30"]

1. e4 {[%emt 1:31:00]} c6 {[%emt 1:31:00]} 2. c4 {[%emt 0:00:30]} d5 {[%emt 0:00:30]} 3. exd5 {[%emt 0:00:30]} cxd5 {[%emt 0:00:30]} 4. cxd5 {[%emt 0:00:30]} Nf6 {[%emt 0:00:30]} 5. Nc3 {[%emt 0:00:30]} Nxd5 {[%emt 0:00:30]} 6. Nf3 {[%emt 0:00:30]} e6 {[%emt 0:00:30]} 7. d4 {[%emt 0:00:30]} Bb4 {[%emt 0:00:30]} 8. Qc2 {[%emt 0:00:30]} Nc6 {[%emt 0:00:30]} 9. Bd3 {[%emt 0:00:30]} Nce7 {[%emt 0:00:30]} 10. O-O {[%emt 0:00:30]} h6 {[%emt 0:00:30]} 11. Bb5+ {[%emt 0:00:30]} Bd7 {[%emt 0:00:30]} 12. Bxd7+ {[%emt 0:00:30]} Qxd7 {[%emt 0:00:30]} 13. Ne5 {[%emt 0:00:30]} Qd8 {[%emt 0:00:30]} 14. Qa4+ {[%emt 0:00:30]} Kf8 {[%emt 0:00:30]} 15. Bd2 {[%emt 0:00:30]} Bd6 {[%emt 0:00:30]} 16. Rad1 {[%emt 0:00:30]} Nxc3 {[%emt 0:00:30]} 17. bxc3 {[%emt 0:00:30]} Bxe5 {[%emt 0:00:30]} 18. dxe5 {[%emt 0:00:30]} Qc7 {[%emt 0:00:30]} 19. Be3 {[%emt 0:00:30]} Nc6 {[%emt 0:00:30]} 20. Bc5+ {[%emt 0:00:30]} Kg8 {[%emt 0:00:30]} 21. Bd6 {[%emt 0:00:30]} Qa5 {[%emt 0:00:30]} 22. Qb3 {[%emt 0:00:30]} b6 {[%emt 0:00:30]} 23. Rfe1 {[%emt 0:00:30]} Rc8 {[%emt 0:00:30]} 24. Qc4 {[%emt 0:00:30]} Ne7 {[%emt 0:00:30]} 25. Qe4 {[%emt 0:00:30]} Nd5 {[%emt 0:00:30]} 26. Bb4 {[%emt 0:00:30]} Qxa2 {[%emt 0:00:30]} 27. Ra1 {[%emt 0:00:30]} Qc4 {[%emt 0:00:30]} 28. Qxc4 {[%emt 0:00:30]} Rxc4 {[%emt 0:00:30]} 29. Rxa7 {[%emt 0:00:30]} Nxb4 {[%emt 0:00:30]} 30. cxb4 {[%emt 0:00:30]} Rxb4 {[%emt 0:00:30]} 31. g3 {[%emt 0:00:30]} g5 {[%emt 0:00:30]} 32. Rd1 {[%emt 0:00:30]} Kg7 {[%emt 0:00:30]} 33. Rdd7 {[%emt 0:00:30]} Rf8 {[%emt 0:00:30]} 34. Rab7 {[%emt 0:00:30]} Kg6 {[%emt 0:00:30]} 35. Rd6 {[%emt 0:00:30]} Kf5 {[%emt 0:00:30]} 36. Rdxb6 {[%emt 0:00:30]} Rxb6 {[%emt 0:00:30]} 37. Rxb6 {[%emt 0:00:30]} Kxe5 {[%emt 0:00:30]} 38. Rb4 {[%emt 0:00:30]} Rd8 {[%emt 0:00:30]} 39. h4 {[%emt 0:00:30]} Rd4 {[%emt 0:00:30]} 40. Rb5+ {[%emt 0:00:30]} Kf6 {[%emt 0:00:30]} 41. hxg5+ {[%emt 0:00:30]} hxg5 {[%emt 0:00:30]} 42. Kg2 {[%emt 0:00:30]} g4 {[%emt 0:00:30]} 43. Ra5 {[%emt 0:00:30]} Kg6 {[%emt 0:00:30]} 44. Re5 {[%emt 0:00:30]} Rd6 {[%emt 0:00:30]} 45. Re2 {[%emt 0:00:30]} Rd3 {[%emt 0:00:30]} 46. Re4 {[%emt 0:00:30]} Kg5 {[%emt 0:00:30]} 47. Re5+ {[%emt 0:00:30]} Kf6 {[%emt 0:00:30]} 48. Re4 {[%emt 0:00:30]} Kg5 {[%emt 0:00:30]} 49. Re5+ {[%emt 0:00:30]} Kf6 {[%emt 0:00:30]} 50. Re4 {[%emt 0:00:30]} Rd8 {[%emt 0:00:30]} 51. Rc4 {[%emt 0:00:30]} 1/2-1/2

[Event "Navidad Barcelona IM1 2024"]
[Site "Barcelona"]
[Date "2024.12.28"]
[Round "4.4"]
[White "Garcia Ramos, Daniel"]
[Black "Villar Reymundo, Juan Antonio"]
[Result "1-0"]
[ECO "B32"]
[WhiteElo "2445"]
[BlackElo "2147"]
[Annotator "RC"]
[PlyCount "81"]
[EventDate "2024.12.26"]
[EventCountry "ESP"]
[SourceTitle "playchess.com"]
[Source "ChessBase"]
[SourceQuality "1"]
[TimeControl "5400+30"]

1. e4 {[%emt 0:01:24]} c5 {[%emt 0:09:05]} 2. Nf3 {[%emt 0:00:09]} Nc6 {[%emt 0:00:07]} 3. d4 {[%emt 0:00:09]} cxd4 {[%emt 0:00:07]} 4. Nxd4 {[%emt 0:00:04]} e5 {[%emt 0:00:07]} 5. Nb5 {[%emt 0:00:22]} d6 {[%emt 0:00:10]} 6. c4 {[%emt 0:01:19]} Be6 {[%emt 0:01:44]} 7. Be2 {[%emt 0:02:01]} g6 {[%emt 0:00:27]} 8. N1c3 {[%emt 0:03:48]} a6 {[%emt 0:00:14]} 9. Na3 {[%emt 0:00:05]} Bg7 {[%emt 0:00:12]} 10. O-O {[%emt 0:01:14]} Nf6 {[%emt 0:00:20]} 11. Be3 {[%emt 0:03:30]} O-O {[%emt 0:00:20]} 12. Nc2 {[%emt 0:01:24]} Rc8 {[%emt 0:03:48]} 13. b3 {[%emt 0:08:02]} Qa5 {[%emt 0:10:59]} 14. Na4 {[%emt 0:09:47]} Nd7 {[%emt 0:12:39]} 15. Qe1 {[%emt 0:18:37]} Qc7 {[%emt 0:19:23]} 16. Qd2 {[%emt 0:03:54]} Rfd8 {[%emt 0:05:35]} 17. Rfd1 {[%emt 0:00:54]} Nc5 {[%emt 0:01:45]} 18. Nc3 {[%emt 0:00:09]} f5 {[%emt 0:04:40]} 19. Bg5 {[%emt 0:08:07]} Ne7 {[%emt 0:02:04]} 20. exf5 {[%emt 0:00:26]} gxf5 {[%emt 0:02:14]} 21. b4 {[%emt 0:01:11]} Ne4 {[%emt 0:00:47]} 22. Nxe4 {[%emt 0:00:05]} fxe4 {[%emt 0:00:05]} 23. Ne3 {[%emt 0:00:05]} Qd7 {[%emt 0:14:28]} 24. h3 {[%emt 0:03:08]} b5 {[%emt 0:00:24]} 25. cxb5 {[%emt 0:06:27]} axb5 {[%emt 0:01:06]} 26. Ng4 {[%emt 0:00:07]} Nf5 {[%emt 0:02:49]} 27. Bxd8 {[%emt 0:04:46]} Qxd8 {[%emt 0:00:19]} 28. Rac1 {[%emt 0:02:13]} Ra8 {[%emt 0:02:24]} 29. Bxb5 {[%emt 0:02:52]} Rxa2 {[%emt 0:00:46]} 30. Qc3 {[%emt 0:00:46]} Nd4 {[%emt 0:01:47]} 31. Bf1 {[%emt 0:06:58]} h5 {[%emt 0:01:20]} 32. Ne3 {[%emt 0:00:09]} d5 {[%emt 0:03:29]} 33. Ra1 {[%emt 0:01:19]} Rxa1 {[%emt 0:00:41]} 34. Rxa1 {[%emt 0:00:05]} Qg5 {[%emt 0:00:15]} 35. Qc7 {[%emt 0:03:25]} Bxh3 {[%emt 0:00:45]} 36. Ra8+ {[%emt 0:01:18]} Kh7 {[%emt 0:00:14]} 37. Qd8 {[%emt 0:01:17]} Nf3+ {[%emt 0:00:41]} 38. Kh1 {[%emt 0:00:04]} Qf4 {[%emt 0:00:38]} 39. Qg8+ {[%emt 0:00:34]} Kh6 {[%emt 0:00:28]} 40. Ra6+ {[%emt 0:00:11]} Bf6 {[%emt 0:00:30]} 41. g3 {[%emt 0:00:32]} 1-0

[Event "Navidad Barcelona IM1 2024"]
[Site "Barcelona"]
[Date "2024.12.28"]
[Round "4.5"]
[White "Perez Perez, Gabriel"]
[Black "Zrikem, Nassim"]
[Result "1-0"]
[ECO "C28"]
[WhiteElo "2201"]
[BlackElo "2204"]
[Annotator "RC"]
[PlyCount "85"]
[EventDate "2024.12.26"]
[EventCountry "ESP"]
[SourceTitle "playchess.com"]
[Source "ChessBase"]
[SourceQuality "1"]
[TimeControl "5400+30"]

1. e4 {[%emt 0:00:14]} e5 {[%emt 0:02:14]} 2. Bc4 {[%emt 0:00:10]} Nf6 {[%emt 0:00:52]} 3. d3 {[%emt 0:00:08]} Nc6 {[%emt 0:04:47]} 4. Nc3 {[%emt 0:01:35]} d6 {[%emt 0:03:28]} 5. Nge2 {[%emt 0:00:59]} Na5 {[%emt 0:03:09]} 6. h3 {[%emt 1:30:24]} Nxc4 {[%emt 0:02:18]} 7. dxc4 {[%emt 0:00:00]} c6 {[%emt 0:02:51]} 8. Qd3 {[%emt 0:00:00]} Be6 {[%emt 0:08:38]} 9. O-O {[%emt 0:01:30]} Nd7 {[%emt 0:07:32]} 10. b3 {[%emt 0:00:00]} g5 {[%emt 0:09:35]} 11. Ba3 {[%emt 0:00:00]} Nc5 {[%emt 0:02:44]} 12. Bxc5 {[%emt 0:00:00]} dxc5 {[%emt 0:01:55]} 13. Qxd8+ {[%emt 0:00:00]} Rxd8 {[%emt 0:00:07]} 14. g4 {[%emt 0:00:00]} h5 {[%emt 0:02:59]} 15. f3 {[%emt 0:00:00]} hxg4 {[%emt 0:00:54]} 16. hxg4 {[%emt 0:00:00]} Rd2 {[%emt 0:01:01]} 17. Rac1 {[%emt 0:00:00]} Rh3 {[%emt 0:02:05]} 18. Kf2 {[%emt 0:00:00]} Bd7 {[%emt 0:09:06]} 19. a4 {[%emt 0:00:00]} Be7 {[%emt 0:01:17]} 20. Rfd1 {[%emt 0:00:00]} Rh2+ {[%emt 0:01:35]} 21. Ke3 {[%emt 0:00:00]} Rxd1 {[%emt 0:03:21]} 22. Nxd1 {[%emt 0:00:00]} b5 {[%emt 0:04:12]} 23. axb5 {[%emt 0:00:00]} cxb5 {[%emt 0:00:05]} 24. Ndc3 {[%emt 0:04:44]} bxc4 {[%emt 0:01:42]} 25. bxc4 {[%emt 0:00:01]} Bd8 {[%emt 0:01:46]} 26. Ra1 {[%emt 0:01:53]} a5 {[%emt 0:00:09]} 27. Rb1 {[%emt 0:00:42]} Rh3 {[%emt 0:04:18]} 28. Nd5 {[%emt 0:00:34]} Bc6 {[%emt 0:10:05]} 29. Nec3 {[%emt 0:00:02]} Rh2 {[%emt 0:00:53]} 30. Ne2 {[%emt 0:01:06]} Kd7 {[%emt 0:00:42]} 31. Nb6+ {[%emt 0:01:05]} Ke6 {[%emt 0:01:05]} 32. Nd5 {[%emt 0:00:14]} a4 {[%emt 0:00:33]} 33. Rb8 {[%emt 0:00:14]} Kd7 {[%emt 0:00:24]} 34. Rb1 {[%emt 0:00:44]} Kd6 {[%emt 0:04:39]} 35. Rd1 {[%emt 0:00:40]} Ke6 {[%emt 0:00:40]} 36. Ra1 {[%emt 0:01:31]} Ba5 {[%emt 0:00:36]} 37. Kd3 {[%emt 0:00:00]} Rh3 {[%emt 0:01:24]} 38. Ke3 {[%emt 0:00:00]} Rh8 {[%emt 0:00:27]} 39. Nec3 {[%emt 0:00:00]} Ra8 {[%emt 0:00:48]} 40. Nb5 {[%emt 0:00:00]} Bxb5 {[%emt 0:03:34]} 41. cxb5 {[%emt 0:02:30]} Kd6 {[%emt 0:00:00]} 42. Kd3 {[%emt 0:00:00]} Bd8 {[%emt 0:01:00]} 43. Ra3 1-0

[Event "Navidad Barcelona IM1 2024"]
[Site "Barcelona"]
[Date "2024.12.28"]
[Round "5.1"]
[White "Zrikem, Nassim"]
[Black "Garcia-Castany Musellas, Gal.la"]
[Result "1/2-1/2"]
[ECO "C47"]
[WhiteElo "2204"]
[BlackElo "2205"]
[Annotator "RC"]
[PlyCount "23"]
[EventDate "2024.12.26"]
[EventCountry "ESP"]
[SourceTitle "playchess.com"]
[Source "ChessBase"]
[SourceQuality "1"]
[TimeControl "5400+30"]

1. e4 {[%emt 1:31:00]} e5 {[%emt 1:31:00]} 2. Nf3 {[%emt 0:00:30]} Nc6 {[%emt 0:00:30]} 3. Nc3 {[%emt 0:00:30]} Nf6 {[%emt 0:00:30]} 4. a3 {[%emt 0:00:30]} d5 {[%emt 0:00:30]} 5. exd5 {[%emt 0:00:30]} Nxd5 {[%emt 0:00:30]} 6. Bb5 {[%emt 0:00:30]} Nxc3 {[%emt 0:00:30]} 7. bxc3 {[%emt 0:00:30]} Bd6 {[%emt 0:00:30]} 8. d4 {[%emt 0:00:30]} exd4 {[%emt 0:00:30]} 9. Qe2+ {[%emt 0:00:30]} Qe7 {[%emt 0:00:30]} 10. Qxe7+ {[%emt 0:00:30]} Bxe7 {[%emt 0:00:30]} 11. cxd4 {[%emt 0:00:30]} O-O {[%emt 0:00:30]} 12. Bf4 {[%emt 0:00:30]} 1/2-1/2

[Event "Navidad Barcelona IM1 2024"]
[Site "Barcelona"]
[Date "2024.12.28"]
[Round "5.2"]
[White "Villar Reymundo, Juan Antonio"]
[Black "Perez Perez, Gabriel"]
[Result "1/2-1/2"]
[ECO "A05"]
[WhiteElo "2147"]
[BlackElo "2201"]
[Annotator "RC"]
[PlyCount "35"]
[EventDate "2024.12.26"]
[EventCountry "ESP"]
[SourceTitle "playchess.com"]
[Source "ChessBase"]
[SourceQuality "1"]
[TimeControl "5400+30"]

1. e4 {[%emt 0:00:30]} e5 {[%emt 0:04:24]} 2. Nf3 {[%emt 0:00:09]} Nc6 {[%emt 0:00:05]} 3. g3 {[%emt 0:00:08]} Nf6 {[%emt 0:01:47]} 4. d3 {[%emt 0:00:06]} g6 {[%emt 0:07:43]} 5. Bg2 {[%emt 0:01:02]} Bg7 {[%emt 0:00:02]} 6. O-O {[%emt 0:01:01]} O-O {[%emt 1:19:29]} 7. Nc3 {[%emt 0:06:37]} d6 {[%emt 0:00:00]} 8. h3 {[%emt 0:07:39]} Nh5 {[%emt 0:00:00]} 9. Nd5 {[%emt 0:09:28]} Ne7 {[%emt 0:00:00]} 10. d4 {[%emt 0:02:39]} Nxd5 {[%emt 0:00:00]} 11. exd5 {[%emt 0:00:19]} e4 {[%emt 0:02:30]} 12. Ng5 {[%emt 0:07:10]} Nf6 {[%emt 0:00:30]} 13. Kh2 {[%emt 1:00:12]} Nxd5 {[%emt 0:00:00]} 14. Nxe4 {[%emt 0:00:00]} Nf6 {[%emt 0:01:00]} 15. Bg5 {[%emt 0:00:00]} d5 {[%emt 0:00:00]} 16. Nxf6+ {[%emt 0:00:00]} Bxf6 {[%emt 0:00:00]} 17. Bxf6 {[%emt 0:00:00]} Qxf6 {[%emt 0:00:00]} 18. c3 {[%emt 0:00:00]} 1/2-1/2

[Event "Navidad Barcelona IM1 2024"]
[Site "Barcelona"]
[Date "2024.12.28"]
[Round "5.3"]
[White "Sviridenko, Yaroslav"]
[Black "Garcia Ramos, Daniel"]
[Result "0-1"]
[ECO "B12"]
[WhiteElo "2120"]
[BlackElo "2445"]
[Annotator "RC"]
[PlyCount "70"]
[EventDate "2024.12.26"]
[EventCountry "ESP"]
[SourceTitle "playchess.com"]
[Source "ChessBase"]
[SourceQuality "1"]
[TimeControl "5400+30"]

1. e4 {[%emt 1:31:00]} c6 {[%emt 1:31:00]} 2. d4 {[%emt 0:00:30]} d5 {[%emt 0:00:30]} 3. e5 {[%emt 0:00:30]} c5 {[%emt 0:00:30]} 4. dxc5 {[%emt 0:00:30]} e6 {[%emt 0:00:30]} 5. c3 {[%emt 0:00:30]} Bxc5 {[%emt 0:00:30]} 6. b4 {[%emt 0:00:30]} Be7 {[%emt 0:00:30]} 7. Qg4 {[%emt 0:00:30]} g6 {[%emt 0:00:30]} 8. Nf3 {[%emt 0:00:30]} a5 {[%emt 0:00:30]} 9. b5 {[%emt 0:00:30]} Qc7 {[%emt 0:00:30]} 10. Be2 {[%emt 0:00:30]} Nd7 {[%emt 0:00:30]} 11. Qf4 {[%emt 0:00:30]} f6 {[%emt 0:00:30]} 12. exf6 {[%emt 0:00:30]} Qxf4 {[%emt 0:00:30]} 13. Bxf4 {[%emt 0:00:30]} Bxf6 {[%emt 0:00:30]} 14. a4 {[%emt 0:00:30]} Ne7 {[%emt 0:00:30]} 15. O-O {[%emt 0:00:30]} O-O {[%emt 0:00:30]} 16. Bg5 {[%emt 0:00:30]} Bxg5 {[%emt 0:00:30]} 17. Nxg5 {[%emt 0:00:30]} Nc5 {[%emt 0:00:30]} 18. Nd2 {[%emt 0:00:30]} b6 {[%emt 0:00:30]} 19. Ngf3 {[%emt 0:00:30]} Bb7 {[%emt 0:00:30]} 20. Ne5 {[%emt 0:00:30]} Rad8 {[%emt 0:00:30]} 21. Ndf3 {[%emt 0:00:30]} Rf4 {[%emt 0:00:30]} 22. c4 {[%emt 0:00:30]} dxc4 {[%emt 0:00:30]} 23. Nxc4 {[%emt 0:00:30]} Bxf3 {[%emt 0:00:30]} 24. gxf3 {[%emt 0:00:30]} Nd5 {[%emt 0:00:30]} 25. Rfd1 {[%emt 0:00:30]} Rdf8 {[%emt 0:00:30]} 26. Ra3 {[%emt 0:00:30]} Rh4 {[%emt 0:00:30]} 27. Ne3 {[%emt 0:00:30]} Rxa4 {[%emt 0:00:30]} 28. Rxa4 {[%emt 0:00:30]} Nxa4 {[%emt 0:00:30]} 29. Nxd5 {[%emt 0:00:30]} exd5 {[%emt 0:00:30]} 30. Rd3 {[%emt 0:00:30]} Rd8 {[%emt 0:00:30]} 31. Rd4 {[%emt 0:00:30]} Nc3 {[%emt 0:00:30]} 32. Bc4 {[%emt 0:00:30]} Kg7 {[%emt 0:00:30]} 33. Rd3 {[%emt 0:00:30]} Ne2+ {[%emt 0:00:30]} 34. Kf1 {[%emt 0:00:30]} Nf4 {[%emt 0:00:30]} 35. Rd4 {[%emt 0:00:30]} Rc8 {[%emt 0:00:30]} 0-1

[Event "Navidad Barcelona IM1 2024"]
[Site "Barcelona"]
[Date "2024.12.28"]
[Round "5.4"]
[White "Alcala Gonzalez, Cesar"]
[Black "Martin Gonzalez, Angel"]
[Result "1-0"]
[ECO "D32"]
[WhiteElo "2257"]
[BlackElo "2197"]
[Annotator "RC"]
[PlyCount "91"]
[EventDate "2024.12.26"]
[EventCountry "ESP"]
[SourceTitle "playchess.com"]
[Source "ChessBase"]
[SourceQuality "1"]
[TimeControl "5400+30"]

1. d4 {[%emt 0:04:24]} d5 {[%emt 0:00:00]} 2. c4 {[%emt 0:00:04]} e6 {[%emt 0:00:00]} 3. Nc3 {[%emt 0:00:03]} c5 {[%emt 0:00:17]} 4. cxd5 {[%emt 0:00:04]} cxd4 {[%emt 0:01:06]} 5. Qa4+ {[%emt 0:00:04]} Bd7 {[%emt 0:00:12]} 6. Qxd4 {[%emt 0:00:04]} exd5 {[%emt 0:00:11]} 7. Qxd5 {[%emt 0:00:03]} Nf6 {[%emt 0:00:13]} 8. Qd1 {[%emt 0:00:05]} Bc5 {[%emt 0:00:18]} 9. Nf3 {[%emt 0:00:28]} O-O {[%emt 0:00:09]} 10. e3 {[%emt 0:00:13]} Qe7 {[%emt 0:01:08]} 11. Be2 {[%emt 0:00:05]} Rd8 {[%emt 0:00:43]} 12. O-O {[%emt 0:00:21]} Nc6 {[%emt 0:00:23]} 13. Qb3 {[%emt 0:00:17]} Be6 {[%emt 0:06:35]} 14. Qc2 {[%emt 0:00:11]} Rac8 {[%emt 0:13:47]} 15. a3 {[%emt 0:24:42]} Bg4 {[%emt 0:05:02]} 16. Rd1 {[%emt 0:29:24]} Rxd1+ {[%emt 0:14:32]} 17. Qxd1 {[%emt 0:00:18]} Rd8 {[%emt 0:00:21]} 18. Qc2 {[%emt 0:03:09]} Ne5 {[%emt 0:01:18]} 19. b4 {[%emt 0:03:38]} Bb6 {[%emt 0:08:08]} 20. Bb2 {[%emt 0:07:01]} Nxf3+ {[%emt 0:10:10]} 21. gxf3 {[%emt 0:09:09]} Bh3 {[%emt 0:02:34]} 22. Kh1 {[%emt 0:00:50]} Bc7 {[%emt 0:12:50]} 23. Rd1 {[%emt 0:09:49]} Rxd1+ {[%emt 0:06:12]} 24. Qxd1 {[%emt 0:00:33]} Qe5 {[%emt 0:01:57]} 25. f4 {[%emt 0:03:12]} Qe6 {[%emt 0:00:09]} 26. Nb5 {[%emt 0:00:52]} Bb6 {[%emt 0:05:40]} 27. Bxf6 {[%emt 0:01:23]} Qxf6 {[%emt 0:03:24]} 28. Nd6 {[%emt 0:00:22]} Qb2 {[%emt 0:01:19]} 29. Nc4 {[%emt 0:00:47]} Qf6 {[%emt 0:01:01]} 30. Bf3 {[%emt 0:01:04]} Bc8 {[%emt 0:04:17]} 31. Qd6 {[%emt 0:01:51]} Bd8 {[%emt 0:01:24]} 32. Qxf6 {[%emt 0:00:10]} Bxf6 {[%emt 0:00:02]} 33. Nd6 {[%emt 0:00:06]} Be6 {[%emt 0:00:41]} 34. Nxb7 {[%emt 0:00:23]} Bb2 {[%emt 0:00:17]} 35. a4 {[%emt 0:00:08]} Ba3 {[%emt 0:00:15]} 36. b5 {[%emt 0:00:21]} Bb3 {[%emt 0:00:01]} 37. a5 {[%emt 0:00:34]} Kf8 {[%emt 0:01:11]} 38. b6 {[%emt 0:00:30]} a6 {[%emt 0:00:27]} 39. Nd8 {[%emt 0:00:12]} Bd6 {[%emt 0:01:01]} 40. Nc6 {[%emt 0:01:18]} Ba4 {[%emt 0:00:32]} 41. Nd4 {[%emt 0:00:01]} Bb4 {[%emt 0:00:37]} 42. b7 {[%emt 0:00:12]} Bd6 {[%emt 0:00:01]} 43. Be2 {[%emt 0:02:00]} Ke8 {[%emt 0:00:38]} 44. Bxa6 {[%emt 0:00:11]} Kd8 {[%emt 0:00:53]} 45. Bb5 {[%emt 0:00:06]} Bd1 {[%emt 0:00:33]} 46. Nc6+ {[%emt 0:00:20]} 1-0

[Event "Navidad Barcelona IM1 2024"]
[Site "Barcelona"]
[Date "2024.12.28"]
[Round "5.5"]
[White "Uber Gracia, Hugo"]
[Black "Munoz, Miguel"]
[Result "1/2-1/2"]
[ECO "A30"]
[WhiteElo "2315"]
[BlackElo "2325"]
[Annotator "RC"]
[PlyCount "32"]
[EventDate "2024.12.26"]
[EventCountry "ESP"]
[SourceTitle "playchess.com"]
[Source "ChessBase"]
[SourceQuality "1"]
[TimeControl "5400+30"]

1. c4 {[%emt 0:00:50]} c5 {[%emt 0:00:18]} 2. Nf3 {[%emt 0:00:18]} Nc6 {[%emt 0:00:13]} 3. d4 {[%emt 0:00:20]} Nf6 {[%emt 0:00:12]} 4. d5 {[%emt 0:00:09]} Nb8 {[%emt 0:00:19]} 5. Nc3 {[%emt 0:01:43]} d6 {[%emt 0:00:07]} 6. e4 {[%emt 0:00:42]} e5 {[%emt 0:00:15]} 7. h3 {[%emt 1:29:58]} Be7 {[%emt 0:00:42]} 8. Bd3 {[%emt 0:00:00]} Nbd7 {[%emt 0:00:35]} 9. Be3 {[%emt 0:00:00]} Nf8 {[%emt 0:00:33]} 10. Qd2 {[%emt 0:00:00]} Ng6 {[%emt 0:00:39]} 11. Ne2 {[%emt 0:00:00]} O-O {[%emt 0:01:33]} 12. Ng3 {[%emt 0:00:00]} Nxe4 {[%emt 0:03:25]} 13. Bxe4 {[%emt 0:00:00]} f5 {[%emt 0:00:16]} 14. Bc2 {[%emt 0:00:00]} f4 {[%emt 0:00:49]} 15. Bxg6 {[%emt 0:00:00]} hxg6 {[%emt 0:02:16]} 16. Ne2 {[%emt 0:00:00]} fxe3 {[%emt 0:06:02]} 1/2-1/2